Cogmind - Beta 13 @@@ ROGUE MODE // 2024.04.11 @ 18:35:03 Player: lazy_engineer Result: Destroyed self with Grenade Launcher Performance ------------- Evolutions (0) 0 Regions Visited (4) 800 Robots Destroyed (16) 80 Value Destroyed (424) 424 Prototype IDs (24) 480 Alien Tech Used (0) 0 Bonus (350) 350 TOTAL SCORE: 2134 Bonus ------- Follower Combat Kills 50 Aligned with FarCom 300 Cogmind --------- Core Integrity 0/250 Matter 280/300 Energy 115/125 System Corruption 2% Temperature Cool (0) Movement Rolling (140) Ox4 Location -9/Mines Parts ------- > --- POWER (1) -------- Light Ion Engine > --- PROPULSION (2) --- Light Treads Wheel > --- UTILITY (2) ------ High-capacity Storage Unit > --- WEAPON (2) ------- Grenade Launcher > --- INVENTORY (20) --- Light Nuclear Core Carbon-fiber Leg Improved Hover Unit Experimental Sensor Array Army-in-a-Box (30/30) Plasma Cutter Peak State ------------ > --- POWER ------------ Light Ion Engine > --- PROPULSION ------- Light Treads Carbon-fiber Leg > --- UTILITY ---------- Small Storage Unit Experimental Sensor Array > --- WEAPON ----------- Light Assault Rifle Light Assault Rifle > --- INVENTORY -------- Light Nuclear Core Wheel Light Armor Plating Light Assault Rifle Grenade Launcher Datajack Mining Claw [Rating: 17] Favorites ----------- Power Light Ion Engine Engine Light Ion Engine Propulsion Light Treads Treads Light Treads Leg Carbon-fiber Leg Wheel Wheel Utility Light Armor Plating Device Experimental Sensor Array Storage Small Storage Unit Protection Light Armor Plating Weapon Light Assault Rifle Ballistic Gun Light Assault Rifle Launcher Grenade Launcher Slashing Weapon Mining Claw Special Melee Weapon Datajack Build | -11 -10 -10 -10 -9 ------- Run | Yrd Mat Min Exi Min Slots Evolved . | . . . . . Power . | . . . . . Propulsion . | . . . . . Utility . | . . . . . Weapon . | . . . . . Parts Attached 29 | 7 2 16 2 2 Power 2 | 1 . 1 . . Engine 2 | 1 . 1 . . Core . | . . . . . Reactor . | . . . . . Propulsion 8 | 2 1 5 . . Treads 2 | 1 1 . . . Leg 2 | . . 2 . . Wheel 4 | 1 . 3 . . Hover . | . . . . . Flight . | . . . . . Utility 11 | 2 1 7 1 . Device 3 | . . 3 . . Storage 3 | 2 . . 1 . Processor . | . . . . . Hackware . | . . . . . Protection 5 | . 1 4 . . Artifact . | . . . . . Weapon 8 | 2 . 3 1 2 Energy Gun . | . . . . . Energy Cannon . | . . . . . Ballistic Gun 4 | 2 . 2 . . Ballistic Cannon . | . . . . . Launcher 2 | . . 1 . 1 Special Weapon . | . . . . . Impact Weapon . | . . . . . Slashing Weapon 1 | . . . 1 . Piercing Weapon . | . . . . . Special Melee Weapon 1 | . . . . 1 Unidentified Prototypes 1 | . . 1 . . Parts Lost 7 | . . 4 . 3 Power 1 | . . 1 . . Propulsion 1 | . . 1 . . Utility 2 | . . 1 . 1 Weapon 3 | . . 1 . 2 Highest Loss Streak 3 | . . 3 . 3 To Critical Strikes . | . . . . . Average Slot Usage (%) 93 | . 100 91 85 97 Engine 12 | . 14 9 14 14 Treads 17 | . 26 16 14 14 Leg 1 | . . 3 . . Wheel 8 | . 1 7 14 14 Storage 14 | . 15 14 14 14 Protection 11 | . 12 8 14 13 Ballistic Gun 16 | . 28 28 . . Slashing Weapon 5 | . . . 13 14 Special Melee Weapon 2 | . . . . 11 Naked Turns . | . . . . . Heaviest Build 49 | 17 17 15 48 49 Greatest Support 40 | 10 40 40 10 10 Greatest Overweight (x) 4 | 1 1 1 4 4 Average Overweight (x) 1 | . . . 2 4 Largest Inventory Capacity 20 | 8 8 8 20 20 Average Capacity 11 | 7 8 8 14 20 Most Carried 14 | 3 6 8 14 14 Average Carried 8 | 1 5 7 9 12 Final Capacity 20 | 8 8 8 20 20 Final Carried 14 | 2 6 7 14 11 Class Distribution -------------------- 100% | Mutant Dominant Class ---------------- Mutant | -10/Materials Mutant | -10/Mines Mutant | -10/Exiles Mutant | -9/Mines Resources | -11 -10 -10 -10 -9 ----------- Run | Yrd Mat Min Exi Min Matter Collected 617 | 230 88 244 . 55 Remotely . | . . . . . Salvage Created 562 | 79 189 284 . 10 Parts 28 | 2 14 12 . . Haulers Intercepted . | . . . . . Recyclers Shooed . | . . . . . Parts Field Recycled . | . . . . . Retrieved Matter . | . . . . . Parts Self-Destructed . | . . . . . Prevented . | . . . . . Kills | -11 -10 -10 -10 -9 ------- Run | Yrd Mat Min Exi Min Combat Hostiles Destroyed 16 | . 6 9 . 1 Guns 13 | . 6 7 . . AOE 3 | . . 2 . 1 Classes Destroyed 4 | 1 2 . . 1 Recycler 1 | 1 . . . . Swarmer 6 | . 3 3 . . Grunt 9 | . 3 6 . . Assembled 1 | . . . . 1 Best Kill Streak 3 | 1 2 3 . 1 Combat Bots Only 3 | . 2 3 . 1 Max Kills in Single Turn 2 | 1 1 2 . 1 Gunslinging . | . . . . . Exploded 2 | . . 2 . 1 Melee . | . . . . . Uniques/NPCs Destroyed . | . . . . . Combat | -11 -10 -10 -10 -9 -------- Run | Yrd Mat Min Exi Min Hostile Shots Fired 111 | . 36 67 . 8 Missed 19 | . 6 11 . 2 Damage Taken 1071 | . 326 599 . 146 Core 279 | . 98 115 . 66 Absorbed by Shields . | . . . . . Core Remaining (%) 100 | 100 . . . . Volleys Fired 55 | 2 20 32 . 1 Largest 2 | 2 2 2 . 1 Hottest 50 | 40 40 50 . 30 Shots Fired 109 | 4 40 64 . 1 Gun 107 | 4 40 63 . . Cannon . | . . . . . Launcher 2 | . . 1 . 1 Special . | . . . . . Kinetic 107 | 4 40 63 . . Thermal . | . . . . . Explosive 2 | . . 1 . 1 Electromagnetic . | . . . . . Robot Hit Streak 9 | 1 9 9 . . Robot Miss Streak 4 | 2 2 4 . 1 Penetration Max . | . . . . . Secondary Targets 1 | . . 1 . . Max Gunslinging Chain 1 | . . 1 . . Shots Hit Robots 75 | 2 30 42 . 1 Core Hits 42 | 2 15 24 . 1 Critical Kills . | . . . . . Critical Parts Destroyed . | . . . . . Critical Strikes . | . . . . . Melee Attacks 3 | . . . . 3 Impact . | . . . . . Slashing 2 | . . . . 2 Piercing . | . . . . . Sneak Attacks . | . . . . . Combat Hostiles . | . . . . . Follow-up Attacks . | . . . . . Damage Inflicted 768 | 15 259 465 . 29 Guns 666 | 15 259 392 . . Cannons . | . . . . . Explosions 102 | . . 73 . 29 Melee . | . . . . . Ramming . | . . . . . Kinetic 666 | 15 259 392 . . Thermal . | . . . . . Explosive 102 | . . 73 . 29 Electromagnetic . | . . . . . Impact . | . . . . . Slashing . | . . . . . Piercing . | . . . . . Highest Corruption 2 | . 2 2 2 2 Average Corruption 2 | . 2 2 2 2 Corruption Purged . | . . . . . Corruption Blocked . | . . . . . Effects 27 | . 3 12 5 7 Message Errors 4 | . . 3 . 1 Matter Fused 7 | . . 4 1 2 Heat Flow Errors 6 | . 1 3 1 1 Energy Discharges 4 | . 1 2 1 . Data Loss (minor) 6 | . 1 . 2 3 Overload Shots . | . . . . . Overflow Damage . | . . . . . Projectiles . | . . . . . Explosions . | . . . . . Melee . | . . . . . Knockbacks . | . . . . . Impact . | . . . . . Kinetic . | . . . . . Secondary . | . . . . . Self-Inflicted Damage 40 | . . . . 40 Shots 1 | . . . . 1 Rammed . | . . . . . Targets Rammed . | . . . . . Kicked . | . . . . . Crushed . | . . . . . Highest Temperature 336 | . 210 336 86 275 Average Temperature 106 | . 61 127 43 139 Received Heat Transfer 366 | . 129 237 . . Siege Activations . | . . . . . Robots Corrupted . | . . . . . Combat Hostiles . | . . . . . Parts Fried . | . . . . . Impact Corruptions . | . . . . . Robots Melted . | . . . . . Combat Hostiles . | . . . . . Parts Melted . | . . . . . Heat Transferred . | . . . . . Parts Sabotaged . | . . . . . Parts Stolen . | . . . . . Parts Stripped . | . . . . . Power Chain Reactions . | . . . . . Alert | -11 -10 -10 -10 -9 ------- Run | Yrd Mat Min Exi Min Peak Influence 201 | 5 183 201 . 15 Initial 11 | . 3 11 . . Average 54 | 1 75 79 . . Maximum Alert Level 1 | . . 1 . . Low Security (%) 98 | 100 100 95 . 100 Level 1 1 | . . 4 . . Level 2 . | . . . . . Level 3 . | . . . . . Level 4 . | . . . . . Level 5 . | . . . . . High Security . | . . . . . Max Security . | . . . . . Squads Dispatched 3 | . 2 1 . . Investigation . | . . . . . Extermination . | . . . . . Reinforcement 2 | . 2 . . . Assault 1 | . . 1 . . Garrison . | . . . . . Intercept . | . . . . . Searches Triggered . | . . . . . Construction Impeded . | . . . . . Haulers Reinforced . | . . . . . Active Scanning Responses . | . . . . . Cargo Convoy Interrupts . | . . . . . Stealth | -11 -10 -10 -10 -9 --------- Run | Yrd Mat Min Exi Min Distress Signals 1 | . . 1 . . Communications Jammed . | . . . . . Distress Signals . | . . . . . Times Spotted 22 | . 10 10 . 2 Peak Tracking Total 4 | . 3 4 . 2 Tactical Retreats 2 | . 1 1 . . Traps | -11 -10 -10 -10 -9 ------- Run | Yrd Mat Min Exi Min Traps Triggered 1 | . 1 . . . Indirectly . | . . . . . Trap Hack Attempts . | . . . . . Triggered . | . . . . . Disarmed . | . . . . . Reprogrammed . | . . . . . Reused . | . . . . . Traps Extracted . | . . . . . Installed . | . . . . . Triggered . | . . . . . Machines | -11 -10 -10 -10 -9 ---------- Run | Yrd Mat Min Exi Min Machines Disabled . | . . . . . Max in Single Turn . | . . . . . Machines Repaired . | . . . . . Machines Dismantled . | . . . . . Machines Sabotaged . | . . . . . Overloaded Fab Kills . | . . . . . Hacking | -11 -10 -10 -10 -9 --------- Run | Yrd Mat Min Exi Min Machines Accessed 3 | . 2 . 1 . Terminals 2 | . 2 . . . Fabricators . | . . . . . Repair Stations . | . . . . . Recycling Units . | . . . . . Scanalyzers . | . . . . . Garrison Access . | . . . . . Total Hacks 10 | . 9 . 1 . Successful 6 | . 5 . 1 . Failed 4 | . 4 . . . Catastrophic . | . . . . . Database Lockouts . | . . . . . Manual 10 | . 9 . 1 . Terminals 9 | . 9 . . . Fabricators . | . . . . . Repair Stations . | . . . . . Recycling Units . | . . . . . Scanalyzers . | . . . . . Garrison Access . | . . . . . Terminal Hacks 3 | . 2 . 1 . Hauler Manifests 1 | . 1 . . . Zone Layout 1 | . 1 . . . Derelict Proto ID Bank 1 | . . . 1 . Fabricator Hacks . | . . . . . Repair Station Hacks . | . . . . . Recycling Unit Hacks . | . . . . . Scanalyzer . | . . . . . Garrison Access Hacks . | . . . . . Unauthorized Hacks 3 | . 3 . . . Terminals 3 | . 3 . . . Assimilate 1 | . 1 . . . Botnet 1 | . 1 . . . Operators 1 | . 1 . . . Fabricators . | . . . . . Repair Stations . | . . . . . Recycling Units . | . . . . . Scanalyzers . | . . . . . Garrison Access . | . . . . . Data Cores Recovered . | . . . . . Used . | . . . . . Hacking Detections 2 | . 2 . . . Full Trace Events . | . . . . . Feedback Events . | . . . . . Feedback Blocked . | . . . . . Robot Schematics Acquired . | . . . . . Robots Built . | . . . . . Authchips . | . . . . . Time . | . . . . . Total Robot Build Rating . | . . . . . Part Schematics Acquired . | . . . . . Parts Built . | . . . . . Authchips . | . . . . . Time . | . . . . . Total Part Build Rating . | . . . . . Parts Repaired . | . . . . . Time . | . . . . . Parts Recycled . | . . . . . Recycled Matter . | . . . . . Retrieved Matter . | . . . . . Retrieved Components . | . . . . . Parts Scanalyzed . | . . . . . Part Schematics Acquired . | . . . . . Parts Damaged . | . . . . . Bothacking | -11 -10 -10 -10 -9 ------------ Run | Yrd Mat Min Exi Min Used RIF Installer . | . . . . . Robots Hacked . | . . . . . Non-combat . | . . . . . Combat . | . . . . . Robot Hacks Applied . | . . . . . Relay Couplers Released . | . . . . . Fabnet Peak Effective % . | . . . . . Robots Rewired . | . . . . . Allies Hacked . | . . . . . Hacks Repelled . | . . . . . Allies | -11 -10 -10 -10 -9 -------- Run | Yrd Mat Min Exi Min Total Allies 2 | . 1 1 . . Largest Group 1 | . 1 1 . . Highest-Rated Group 31 | . 10 31 . . Highest-Rated Ally 31 | . 10 31 . . Total Orders . | . . . . . Ally Attacks 8 | . . 8 . . Total Damage 106 | . . 106 . . Kills 2 | . . 2 . . Allies Corrupted . | . . . . . Allies Melted . | . . . . . Intel | -11 -10 -10 -10 -9 ------- Run | Yrd Mat Min Exi Min Robot Analysis Total . | . . . . . Derelict Logs Recovered 2 | . . 1 . 1 Drone Launches . | . . . . . Drone Recoveries . | . . . . . Exploration | -11 -10 -10 -10 -9 ------------- Run | Yrd Mat Min Exi Min Turns Passed 2195 | 58 527 689 458 463 Spaces Moved 1466 | 41 257 520 393 255 Core 1 | 1 . . . . Treads 281 | . 223 58 . . Legs 115 | . . 115 . . Wheels 1069 | 40 34 347 393 255 Hover . | . . . . . Flight . | . . . . . Fastest Speed 50 | 50 95 80 95 140 Average Speed 120 | 90 151 101 115 140 Slowest Speed 160 | 95 160 160 140 140 Overloaded Moves . | . . . . . Propulsion Burnouts . | . . . . . Robots Hopped . | . . . . . Cave-ins Triggered . | . . . . . Exploration Rate (%) 45 | 3 36 90 60 36 Regions Visited 4 Branch Regions 3 Pre-discovered Areas . | . . . . . Known Exits Taken . | . . . . . Unknown Exits Taken 4 | 1 1 1 1 . Scrap Searched 4 | . . 2 . 2 Spaces Dug 1 | . . . . 1 Terrain Destroyed 11 | . . 8 . 3 Melee 1 | . . . . 1 Projectile . | . . . . . AOE 10 | . . 8 . 2 Terrain Rammed . | . . . . . Walls Destroyed . | . . . . . Machines Disabled . | . . . . . Actions | -11 -10 -10 -10 -9 --------- Run | Yrd Mat Min Exi Min Total 1801 | 58 363 623 398 359 Wait 224 | . 79 51 1 93 Move 1462 | 40 256 519 392 255 Hop . | . . . . . Pick Up 21 | 9 5 4 1 2 Fast Attach 1 | . . 1 . . Attach 12 | 7 . 3 . 2 Detach 1 | . . . 1 . Swap 16 | . 2 12 2 . Drop 6 | . 1 1 1 3 Fire 55 | 2 20 32 . 1 Melee 3 | . . . . 3 Ram . | . . . . . Kick . | . . . . . Crush . | . . . . . Escape Stasis . | . . . . . Rewire . | . . . . . Trap . | . . . . . Miscellaneous . | . . . . . Route ------- -11/Scrapyard -10/Materials -10/Mines (discovered 3 exits: [*Mat x2] / *Exi) -10/Exiles -9/Mines History --------- Turn | Location | Event 13 | -11/Scrapyard | Discovered new exit (range 15) 59 | -11/Scrapyard | Entered Materials 306 | -10/Materials | Build established: Mutant 425 | -10/Materials | Discovered new exit (range 11) 586 | -10/Materials | Entered Mines 592 | -10/Mines | Core integrity fell below 50% 678 | -10/Mines | Found a damaged Exp. Sensor Array with a note attached 681 | -10/Mines | Found Prototype Device 682 | -10/Mines | Identified Exp. Sensor Array 717 | -10/Mines | Core integrity fell below 20% 748 | -10/Mines | Lost 3 parts (1p1n1u) 805 | -10/Mines | Learned Materials emergency access door positions 874 | -10/Mines | Discovered new exit (range 12) 883 | -10/Mines | Discovered new exit (range 15) 911 | -10/Mines | Met a Derelict testing a Signal Generator 1268 | -10/Mines | Deemed a non-threat by the Exiles lab entrance 1268 | -10/Mines | Discovered new exit (range 5) 1275 | -10/Mines | Entered Exiles 1299 | -10/Exiles | Met 8R-AWN 1317 | -10/Exiles | Met EX-HEX 1345 | -10/Exiles | Met EX-BIN 1374 | -10/Exiles | Aligned with FarCom system 1375 | -10/Exiles | Given EX-Vault access code 1397 | -10/Exiles | Opened EX-Vault 1419 | -10/Exiles | Warned to stay clear of 0b10 Research branches 1446 | -10/Exiles | Met EX-DEC 1601 | -10/Exiles | Found Army-in-a-Box 1720 | -10/Exiles | Discovered new exit (range 11) 1733 | -10/Exiles | Left Exiles lab with Army-in-a-Box 1733 | -10/Exiles | Entered Mines 1750 | -9/Mines | Found a hidden stash of uninstalled traps 2088 | -9/Mines | Excavation squad dispatched 2088 | -9/Mines | A large section of the Mines collapsed 2196 | -9/Mines | Destroyed self with Grenade Launcher Last Messages --------------- 02026_ System corrupted: Component data lost. 02086_ System corrupted: Matter fused (-9). 02088_ ALERT: Suspicious cave-in, suspected derelict activity in mines. Dispatching escorted excavation squad. 02147_ T-07 Excavator is excavating. 02162_ K-01 Serf collects debris. 02164_ T-07 Excavator is excavating. 02165_ as-30549 sneak attacks. 02165_ T-07 Excavator destroyed. 02165_ K-01 Serf collects debris. 02168_ as-30549 sneak attacks. 02168_ K-01 Serf destroyed. 02177_ System corrupted: Component data lost. 02178_ R-06 Scavenger destroyed. 02182_ Lgt. Armor Plating destroyed. 02188_ Jacked as-78093... 02190_ as-30549 sneak attacks. 02195_ Datajack destroyed. 02195_ Mining Claw destroyed. 02196_ as-30549 destroyed. Map ----- +----------------------------------------------------+ | ?????# #???????# #????????????????????????? | | ?????# #???????# #????????????????????????? | | ?????## ##??????# #????????????????????????? | | ??????## ##?????# #????????????????????????? | | ???????## ####### #????????????????????????? | | ????????# ######???????????????????? | | ????????# ##########"# ##??????????????????? | | ????????# #?????####" ######?????????????? | | ????????# ##????##= ### ??????????????? | | ????????# ##???# %%""##???????????????????? | | ????????## #???##!=####???????????????????? | | ?????????## %#????## #??????????????????????? | | ??????????# ####?????# #??????????????????????? | | ??????????# #????????# #??????????s???????????? | | ??????????# #????????# #??????????????????????? | | ??????????# #????????# #??????????????????????? | | ??????????# #????????# #??????????????????????? | | ??????????# #????????# #??????????????????????? | | ??????????# #######??#*####???????????????????? | | ??????????# ####[%[!#???????????????????? | | ??????????# ##### #???????????????????? | | ????####### ##?# #???????????????????? | | ????# ### #???????????????????? | | ????# ## ## ######???g??????????? | | ????# ############## a ! #?????????#????? | | ????# #????????????# @% #### #???????? #????? | | ????# #????????????## # # #??# ######### ###### | | ????# #?????????????####?# #??# ## g | | ????# #??????????????????# #??# ####[######## | | ????# #??????????????????# #??# ## #??#[#??????? | | ????# #?????????????????? #??# ## #??# ######## | | ????# #?????????????????? ??# ## #??#[[*! | | ????# #?????????????????? ?? #??########## | | ????# #?????????????????? ?? ???????????? | | ????# #??????????????????###?? #???????????? | | ????# #??????????????????????? #???????????? | | ????# #??????????????????????? #????????????? | | ????# #??????????????????????? ?????????????? | | ????# #??????????????????????? ?????????????? | | ????# #??????????????????????? ?????????????? | | ????# #??????????????????????? ?????????????? | | ????# #??????????????????????? ?????????????? | | ????# #??????????????????????? ?????????????? | | ????# #????????????????????????????????????????? | | ???? ????????????????????????????????????????? | | ???? ????????????????????????????????????????? | | ???? ????????????????????????????????????????? | | ???? ""????????????????????????????????????????? | | ???? ""????????????????????????????????????????? | | ???? ""????????????????????????????????????????? | +----------------------------------------------------+ Best States ------------- Heat Dissipation 25 Energy Generation 10 Energy Capacity 250 Matter Stores 300 Matter Capacity 300 Sight Range 16 Robot Scan Range 20 Terrain Scan Density 10 Armor Coverage 150 Evasion (%) 55 Recoil Reduction 2 Item Schematics ----------------- None Robot Schematics ------------------ None Fabricated ------------ Nothing Alien Tech Used ----------------- None Achievements -------------- None Challenges ------------ None Game ------ Seed MiniThrusterAmplifier Manual? 0 Play Time 00:17:03 Cumulative 31.7 hours Start 2024.04.11 @ 18:17:38 End 2024.04.11 @ 18:35:03 Sessions 1 Manual Loads 0 Difficulty Rogue Special Mode None Game No. 63 Rogue 63 Adventurer 0 Explorer 0 Win Type - Total 0 Types 0/0/0/0/0/0/0/0/0 Lore% 23 Gallery% 26 Achievement% 23 Wizard Run 0 Options --------- Layout 0 ASCII 0 Keyboard 0 Movement Mouse Keybinds 0 Fullscreen 1 Font 24/Smallcaps Map View 76x50 Zoom Use 0% Tactical HUD 1 Map Filters NONE Filters NONE Steam 1 RUN: cc386764-a1c5-4484-b880-6bfc475ae16f